Cogmind - Beta 15 @@@ ROGUE MODE // 2025.07.08 @ 05:04:50 Player: Carpathian Result: Destroyed by G-47 Trooper with Particle Gun Performance ------------- Evolutions (2) 1000 Regions Visited (4) 800 Robots Destroyed (40) 200 Value Destroyed (1188) 1188 Prototype IDs (2) 40 Alien Tech Used (0) 0 Bonus (35) 35 TOTAL SCORE: 3263 Bonus ------- Follower Combat Kills 35 Cogmind --------- Core Integrity 0/550 Matter 47/300 Energy 97/100 System Corruption 0% Temperature Cool (10) Movement Treading (225) Ox1 Location -8/Materials Parts ------- > --- POWER (1) -------- (None) > --- PROPULSION (2) --- Advanced Treads > --- UTILITY (6) ------ Large Storage Unit Improved Sensor Array Improved Signal Interpreter Hacking Suite > --- WEAPON (2) ------- Gauss Rifle > --- INVENTORY (15) --- Deuterium Engine Deuterium Engine Gravmag System Gravmag System Rocket Launcher Peak State ------------ > --- POWER ------------ Ion Engine > --- PROPULSION ------- Light Treads Advanced Treads > --- UTILITY ---------- Large Storage Unit Improved Sensor Array Transport Network Coupler Heavy Armor Plating Hacking Suite > --- WEAPON ----------- Autogun Rocket Launcher > --- INVENTORY -------- Deuterium Engine Deuterium Engine Gravmag System Gravmag System Improved Signal Interpreter Gauss Rifle Rocket Launcher [Rating: 25] Favorites ----------- Power Ion Engine Engine Ion Engine Propulsion Aluminum Leg Treads Light Treads Leg Aluminum Leg Hover Unit Gravmag System Utility Large Storage Unit Device Improved Sensor Array Storage Large Storage Unit Processor Transport Network Coupler Hackware Hacking Suite Protection Heavy Armor Plating Weapon Medium Laser Energy Gun Medium Laser Energy Cannon Advanced Beam Cannon Ballistic Gun Autogun Ballistic Cannon Flak Cannon Launcher Rocket Launcher Build | -11 -10 -9 -9 -8 ------- Run | Yrd Mat Mat Min Mat Slots Evolved 4 | . . 2 . 2 Power . | . . . . . Propulsion . | . . . . . Utility 4 | . . 2 . 2 Weapon . | . . . . . Parts Attached 42 | 6 . 8 . 28 Power 5 | 1 . 2 . 2 Engine 5 | 1 . 2 . 2 Core . | . . . . . Reactor . | . . . . . Propulsion 11 | 2 . 2 . 7 Treads 4 | 2 . . . 2 Leg 5 | . . 2 . 3 Wheel . | . . . . . Hover 2 | . . . . 2 Flight . | . . . . . Utility 8 | 1 . . . 7 Device 1 | . . . . 1 Storage 2 | 1 . . . 1 Processor 3 | . . . . 3 Hackware 1 | . . . . 1 Protection 1 | . . . . 1 Artifact . | . . . . . Weapon 18 | 2 . 4 . 12 Energy Gun 5 | . . 4 . 1 Energy Cannon 1 | . . . . 1 Ballistic Gun 10 | 2 . . . 8 Ballistic Cannon 1 | . . . . 1 Launcher 1 | . . . . 1 Special Weapon . | . . . . . Impact Weapon . | . . . . . Slashing Weapon . | . . . . . Piercing Weapon . | . . . . . Special Melee Weapon . | . . . . . Unidentified Prototypes 2 | . . . . 2 Parts Lost 14 | . . 3 . 11 Power 3 | . . 1 . 2 Propulsion 4 | . . 1 . 3 Utility 1 | . . . . 1 Weapon 6 | . . 1 . 5 Highest Loss Streak 5 | . . 2 . 5 To Critical Strikes . | . . . . . Average Backups 4 | 1 2 3 4 5 Power 1 | . 1 . 1 1 Propulsion . | . . . . 1 Utility . | . . 1 1 . Weapon 1 | . 1 1 2 2 Tool/Special . | . . . . . Unused Backups 6 | . . . . 6 Power 2 | . . . . 2 Propulsion 2 | . . . . 2 Utility . | . . . . . Weapon 2 | . . . . 2 Tool/Special . | . . . . . Average Slot Usage (%) 66 | . 85 60 66 64 Engine 9 | . 14 9 11 8 Treads 9 | . 28 15 . 6 Leg 9 | . . 4 22 8 Storage 10 | . 14 11 11 9 Processor 4 | . . . . 7 Hackware 1 | . . . . 2 Energy Gun 9 | . . 19 22 5 Ballistic Gun 8 | . 28 1 . 8 Launcher 1 | . . . . 2 Peak Build Rating 25 | 6 6 8 6 25 Average Rating 10 | 4 6 6 6 13 On Entrance 4 | . 6 6 6 6 Naked Turns . | . . . . . Heaviest Build 47 | 12 12 16 11 47 Greatest Support 42 | 40 40 40 20 42 Greatest Overweight (x) 4 | . . 4 . 3 Average Overweight (x) . | . . . . . Largest Inventory Capacity 15 | 8 8 8 8 15 Average Capacity 11 | 7 8 8 8 15 Most Carried 10 | 4 4 7 4 10 Average Carried 4 | 1 2 3 4 5 Final Capacity 15 | 8 8 8 8 15 Final Carried 5 | 2 4 4 4 5 Class Distribution -------------------- 94% | Mutant 5% | Scavenger-Mutant Dominant Class ---------------- Mutant | -10/Materials Mutant | -9/Materials Mutant | -9/Mines Mutant | -8/Materials Resources | -11 -10 -9 -9 -8 ----------- Run | Yrd Mat Mat Min Mat Matter Collected 867 | 196 84 149 . 438 Remotely . | . . . . . Salvage Created 1340 | . 104 381 . 855 Parts 75 | . 6 19 . 50 Haulers Intercepted 2 | . . . . 2 Recyclers Shooed 2 | . . 1 . 1 Parts Field Recycled . | . . . . . Retrieved Matter . | . . . . . Parts Self-Destructed . | . . . . . Prevented . | . . . . . Kills | -11 -10 -9 -9 -8 ------- Run | Yrd Mat Mat Min Mat Combat Hostiles Destroyed 30 | . 3 9 . 18 Melee 1 | . . . . 1 Guns 24 | . 3 9 . 12 Cannons 4 | . . . . 4 AOE 1 | . . . . 1 Classes Destroyed 10 | . 1 3 . 6 Worker 4 | . . . . 4 Builder 3 | . . . . 3 Hauler 2 | . . . . 2 Recycler 1 | . . 1 . . Swarmer 4 | . . . . 4 Grunt 15 | . 3 6 . 6 Brawler 1 | . . 1 . . Duelist 1 | . . . . 1 Sentry 8 | . . 2 . 6 Hunter 1 | . . . . 1 Best Kill Streak 5 | . 3 3 . 5 Combat Bots Only 5 | . 3 3 . 5 Max Kills in Single Turn 2 | . 1 1 . 2 Gunslinging . | . . . . . Exploded 1 | . . . . 1 Melee 1 | . . . . 1 Uniques/NPCs Destroyed . | . . . . . Combat | -11 -10 -9 -9 -8 -------- Run | Yrd Mat Mat Min Mat Hostile Shots Fired 258 | . 10 44 . 204 Missed 63 | . 2 13 . 48 Hits 195 | . 8 31 . 156 Melee 4 | . . 1 . 3 Projectile 191 | . 8 30 . 153 Critical Strikes 10 | . . 1 . 9 Damage Taken 2826 | . 87 427 . 2312 Core 647 | . 20 69 . 558 Absorbed by Shields . | . . . . . Regen/Repaired (Parts) 21 | . . . . 21 Core Remaining (%) 91 | 100 92 . 82 . Volleys Fired 129 | . 10 36 . 83 Largest 2 | . 2 2 . 2 Hottest 130 | . 40 130 . 90 Shots Fired 238 | . 20 70 . 148 Gun 210 | . 20 70 . 120 Cannon 24 | . . . . 24 Launcher 4 | . . . . 4 Special . | . . . . . Kinetic 123 | . 20 4 . 99 Thermal 111 | . . 66 . 45 Explosive 4 | . . . . 4 Electromagnetic . | . . . . . Robot Hit Streak 14 | . 11 13 . 14 Robot Miss Streak 8 | . 3 3 . 8 Penetration Max . | . . . . . Secondary Targets . | . . . . . Shots Hit Robots 184 | . 14 57 . 113 Core Hits 102 | . 6 39 . 57 Critical Kills . | . . . . . Critical Parts Destroyed . | . . . . . Critical Strikes 8 | . . 2 . 6 Burn 8 | . . 2 . 6 Melee Attacks . | . . . . . Impact . | . . . . . Slashing . | . . . . . Piercing . | . . . . . Sneak Attacks . | . . . . . Combat Hostiles . | . . . . . Follow-up Attacks . | . . . . . Damage Inflicted 2924 | . 122 785 . 2017 Guns 2252 | . 122 785 . 1345 Cannons 417 | . . . . 417 Explosions 217 | . . . . 217 Melee . | . . . . . Ramming 38 | . . . . 38 Kinetic 1432 | . 122 26 . 1284 Thermal 1237 | . . 759 . 478 Explosive 217 | . . . . 217 Electromagnetic . | . . . . . Impact . | . . . . . Slashing . | . . . . . Piercing . | . . . . . Highest Corruption . | . . . . . Average Corruption . | . . . . . Corruption Purged . | . . . . . Corruption Blocked . | . . . . . Overload Shots . | . . . . . Overflow Damage 23 | . . . . 23 Projectiles . | . . . . . Explosions 23 | . . . . 23 Melee . | . . . . . Knockbacks 16 | . . . . 16 Impact . | . . . . . Kinetic 14 | . . . . 14 Secondary 2 | . . . . 2 Self-Inflicted Damage 120 | . . . . 120 Shots 3 | . . . . 3 Rammed 14 | . . . . 14 Targets Rammed 15 | . . . . 15 Kicked . | . . . . . Crushed 1 | . . . . 1 Highest Temperature 309 | . 12 309 . 197 Average Temperature 77 | . 6 126 . 31 Received Heat Transfer 1092 | . 48 198 . 846 Effects 4 | . . 4 . . Energy Bleed 2 | . . 2 . . Interference 2 | . . 2 . . Siege Activations . | . . . . . Martial Activations . | . . . . . Shielding Activations . | . . . . . Robots Disrupted . | . . . . . Combat Hostiles . | . . . . . Robots Corrupted . | . . . . . Combat Hostiles . | . . . . . Parts Fried . | . . . . . Impact Corruptions . | . . . . . Robots Melted . | . . . . . Combat Hostiles . | . . . . . Parts Melted 8 | . . 2 . 6 Heat Transferred 3358 | . . 1615 . 1743 Parts Sabotaged . | . . . . . Parts Stolen . | . . . . . Parts Stripped . | . . . . . Power Chain Reactions . | . . . . . Alert | -11 -10 -9 -9 -8 ------- Run | Yrd Mat Mat Min Mat Maximum Alert Level . | . . . . . Low Security (%) 100 | 100 100 100 100 100 Level 1 . | . . . . . Level 2 . | . . . . . Level 3 . | . . . . . Level 4 . | . . . . . Level 5 . | . . . . . High Security . | . . . . . Max Security . | . . . . . Peak Influence 136 | . 60 117 43 136 Initial 43 | . . 16 43 . Average 48 | . 13 65 6 65 Influence Increases 967 | . 70 302 . 595 Destroy 0b10 Robot/C 620 | . 60 180 . 380 Destroy 0b10 Robot/NC 50 | . . 5 . 45 Destroy Leader 154 | . 10 50 . 94 Allied During Kill 4 | . . . . 4 Successful Hack 7 | . . 7 . . Disable Machine 30 | . . 15 . 15 Destroy Structure 42 | . . . . 42 Lose Combat Pursuer 60 | . . 45 . 15 Influence Decreases 936 | . 30 230 112 564 Entered New Map 93 | . . 24 69 . Time Decay 687 | . 30 176 43 438 Lost Part 136 | . . 30 . 106 Lost Ally 20 | . . . . 20 Squads Dispatched 5 | . 2 1 . 2 Investigation 2 | . 1 . . 1 Extermination . | . . . . . Reinforcement 3 | . 1 1 . 1 Assault . | . . . . . Garrison . | . . . . . Intercept . | . . . . . Searches Triggered . | . . . . . Construction Impeded . | . . . . . Haulers Reinforced . | . . . . . Active Scanning Responses . | . . . . . Cargo Convoy Interrupts . | . . . . . Stealth | -11 -10 -9 -9 -8 --------- Run | Yrd Mat Mat Min Mat Distress Signals 4 | . . 2 . 2 Communications Jammed . | . . . . . Distress Signals . | . . . . . Times Spotted 55 | . 5 15 . 35 Peak Tracking Total 6 | . 4 3 . 6 Tactical Retreats 3 | . . 2 . 1 Traps | -11 -10 -9 -9 -8 ------- Run | Yrd Mat Mat Min Mat Traps Triggered 5 | . 1 3 . 1 Indirectly . | . . . . . Trap Hack Attempts . | . . . . . Triggered . | . . . . . Disarmed . | . . . . . Reprogrammed . | . . . . . Reused . | . . . . . Traps Extracted . | . . . . . Installed . | . . . . . Triggered . | . . . . . Machines | -11 -10 -9 -9 -8 ---------- Run | Yrd Mat Mat Min Mat Machines Disabled 2 | . . 1 . 1 Max in Single Turn 1 | . . 1 . 1 Machines Repaired . | . . . . . Machines Dismantled . | . . . . . Machines Sabotaged . | . . . . . Overloaded Fab Kills . | . . . . . Hacking | -11 -10 -9 -9 -8 --------- Run | Yrd Mat Mat Min Mat Machines Accessed 5 | . 1 2 . 2 Terminals 4 | . 1 2 . 1 Fabricators . | . . . . . Repair Stations 1 | . . . . 1 Recycling Units . | . . . . . Scanalyzers . | . . . . . Garrison Access . | . . . . . Total Hacks 12 | . 2 5 . 5 Successful 9 | . 2 2 . 5 Failed 3 | . . 3 . . Catastrophic . | . . . . . Database Lockouts . | . . . . . Manual . | . . . . . Terminals 10 | . 2 5 . 3 Fabricators . | . . . . . Repair Stations 2 | . . . . 2 Recycling Units . | . . . . . Scanalyzers . | . . . . . Garrison Access . | . . . . . Terminal Hacks 7 | . 2 2 . 3 Record 4 | . 2 . . 2 Terminal Index 1 | . . 1 . . Registered Components 1 | . . 1 . . Zone Layout 1 | . . . . 1 Fabricator Hacks . | . . . . . Repair Station Hacks 2 | . . . . 2 Scan Component 1 | . . . . 1 Repair 1 | . . . . 1 Recycling Unit Hacks . | . . . . . Scanalyzer . | . . . . . Garrison Access Hacks . | . . . . . Unauthorized Hacks . | . . . . . Terminals . | . . . . . Fabricators . | . . . . . Repair Stations . | . . . . . Recycling Units . | . . . . . Scanalyzers . | . . . . . Garrison Access . | . . . . . Data Cores Recovered . | . . . . . Used . | . . . . . Hacking Detections 1 | . . . . 1 Full Trace Events . | . . . . . Feedback Events . | . . . . . Feedback Blocked . | . . . . . Robot Schematics Acquired . | . . . . . Robots Built . | . . . . . Authchips . | . . . . . Time . | . . . . . Total Robot Build Rating . | . . . . . Part Schematics Acquired . | . . . . . Parts Built . | . . . . . Authchips . | . . . . . Time . | . . . . . Total Part Build Rating . | . . . . . Parts Repaired 1 | . . . . 1 Time 26 | . . . . 26 Parts Recycled . | . . . . . Recycled Matter . | . . . . . Retrieved Matter . | . . . . . Retrieved Components . | . . . . . Parts Scanalyzed . | . . . . . Part Schematics Acquired . | . . . . . Parts Damaged . | . . . . . Bothacking | -11 -10 -9 -9 -8 ------------ Run | Yrd Mat Mat Min Mat Used RIF Installer . | . . . . . Robots Hacked . | . . . . . Non-combat . | . . . . . Combat . | . . . . . Robot Hacks Applied . | . . . . . Relay Couplers Released . | . . . . . Fabnet Peak Effective % . | . . . . . Robots Rewired . | . . . . . Allies Hacked . | . . . . . Hacks Repelled . | . . . . . Allies | -11 -10 -9 -9 -8 -------- Run | Yrd Mat Mat Min Mat Total Allies 2 | . . . 2 . Largest Group 2 | . . . 2 2 Highest-Rated Group 41 | . . . 41 41 Highest-Rated Ally 31 | . . . 31 31 Total Orders . | . . . . . Ally Attacks 10 | . . . . 10 Total Damage 146 | . . . . 146 Kills 1 | . . . . 1 Allies Corrupted . | . . . . . Allies Melted . | . . . . . Intel | -11 -10 -9 -9 -8 ------- Run | Yrd Mat Mat Min Mat Active Infowar (turns) 753 | . . . . 753 Sensors 127 | . . . . 127 T.N.C. 628 | . . . . 628 Robot Analysis Total . | . . . . . Derelict Logs Recovered 2 | . . . 2 . Drone Launches . | . . . . . Drone Recoveries . | . . . . . Exploration | -11 -10 -9 -9 -8 ------------- Run | Yrd Mat Mat Min Mat Turns Passed 2314 | 78 238 398 362 1238 Spaces Moved 922 | 44 127 130 202 419 Core 9 | 5 . 4 . . Treads 437 | 39 127 95 . 176 Legs 419 | . . 31 202 186 Wheels . | . . . . . Hover 57 | . . . . 57 Flight . | . . . . . Fastest Speed 50 | 50 160 120 120 116 Average Speed 163 | 147 160 153 120 189 Slowest Speed 330 | 160 160 250 120 330 Overloaded Moves . | . . . . . Propulsion Burnouts . | . . . . . Robots Hopped . | . . . . . Potential Cave-ins . | . . . . . Cave-ins Triggered . | . . . . . Exploration Rate (%) 28 | 4 34 15 47 42 Regions Visited 4 Branch Regions 1 Pre-discovered Areas . | . . . . . Known Exits Taken . | . . . . . Unknown Exits Taken 4 | 1 1 1 1 . Scrap Searched . | . . . . . Spaces Dug . | . . . . . Terrain Destroyed 39 | . . . . 39 Melee . | . . . . . Projectile . | . . . . . AOE 39 | . . . . 39 Terrain Rammed . | . . . . . Walls Destroyed . | . . . . . Machines Disabled . | . . . . . Actions | -11 -10 -9 -9 -8 --------- Run | Yrd Mat Mat Min Mat Total 1498 | 57 146 259 321 715 Wait 307 | . 8 60 120 119 Move 918 | 43 126 129 201 419 Hop . | . . . . . Pick Up 54 | 8 2 14 . 30 Fast Attach . | . . . . . Attach 31 | 6 . 9 . 16 Detach . | . . . . . Swap 22 | . . 6 . 16 Drop 22 | . . 5 . 17 Fire 129 | . 10 36 . 83 Melee . | . . . . . Ram 3 | . . . . 3 Kick . | . . . . . Crush 12 | . . . . 12 Escape Stasis . | . . . . . Rewire . | . . . . . Trap . | . . . . . Miscellaneous . | . . . . . Route ------- -11/Scrapyard -10/Materials -9/Materials -9/Mines (discovered 2 exits: *Mat / Exi) -8/Materials (discovered 1 exit: [*Fac]) History --------- Turn | Location | Event 28 | -11/Scrapyard | Discovered new exit (range 15) 79 | -11/Scrapyard | Entered Materials 299 | -10/Materials | Discovered new exit (range 5) 308 | -10/Materials | Build established: Mutant 317 | -10/Materials | Entered another Materials area 317 | -9/Materials | Evolved 2 slots: Utility x2 693 | -9/Materials | Discovered new exit (range 10) 715 | -9/Materials | Entered Mines 716 | -9/Mines | Assembled infested the area 751 | -9/Mines | Identified exit to Exiles 756 | -9/Mines | Learned Materials garrison access intel 1059 | -9/Mines | Discovered new exit (range 8) 1077 | -9/Mines | Entered Materials 1077 | -8/Materials | Accompanied by 2 allies 1077 | -8/Materials | Evolved 2 slots: Utility x2 1078 | -8/Materials | Loaded intel: 1 garrison access location 1082 | -8/Materials | Led the pair of lost Derelicts to an unsafe place 1331 | -8/Materials | Repaired Sml. Laser 1778 | -8/Materials | Core integrity fell below 50% 1814 | -8/Materials | Lost 5 parts (1p1n1u2w) 2259 | -8/Materials | Discovered new exit (range 16) 2281 | -8/Materials | Core integrity fell below 20% 2315 | -8/Materials | Destroyed by G-47 Trooper with Particle Gun Last Messages --------------- 02187_ Acquired Imp. Sensor Array. 02189_ Dropped Hvy. Armor Plating. 02190_ Discarded Transport Network Coupler. 02259_ EXIT=FOUND 02270_ Slammed into Y-45 Defender. 02274_ Critical hit (Burn: +37). 02276_ Slammed into Y-45 Defender. 02283_ Autogun destroyed. 02284_ Slammed into Y-45 Defender. 02289_ Lgt. Treads destroyed. 02290_ Slammed into Y-45 Defender. 02299_ Rocket Launcher destroyed. 02299_ Destroyed Rocket Launcher. 02301_ Ion Engine destroyed. 02304_ Slug penetrates Wall. 02306_ Y-45 Defender destroyed. 02308_ Acquired 24 matter. 02315_ Triggered Alarm Trap. 02315_ An alarm sounds. 02315_ ALERT: Alarm triggered, dispatching investigation squad. Map ----- +----------------------------------------------------+ | | | | | | | ??????????????????????????????? | | ??????????????????????????????? | | ??????????????????????????????? | | ########??????????????????????? | | #??????????????????????? | | #??????????????????????? | | #??????????????????????? | | #??????????????????????? | | ###### #??????????????????????? | | ???????#??????????????????????? | | ??????????????????????????????? | | ????????????######?#####??????? | | ????????????? ] T?# #??????? | | ?????????????? #g< #??????? | | ??????????????""" # g ######## | | ??????????????""" ; ## # | | ????????????????" # ## # | | ?????????????????? ## # | | ?????????????????### # | | ?????????????????# # | | ###??????????????## # | | #??????????????# # | | #########??????# @ # | | # #??????## # | | # #???????## ## # | | # [=! #????????# ## # | | + [ * #????????# ## =# | | # [ #????????# ######## | | # #????????# #??????? | | # #????????# #??????? | | ### ###????????# #??????? | | #?# #??????????# #??????? | | ###?# ############ #??????? | | ????# ## # #??????? | | ????# =## """ + #??????? | | ????# ## "Y" # #??????? | | ????# ## # ######## | | ????# ############ # # | | ????# #?########## # " # | | ????#* ### "" # # """ # | | ????#= =## ""S # #! """ # | | ????# * ### "" # # """ # | | ????# [#?# # # "" # | | ##### !### + / """ # | | = *% ## """ # # "" # | | ## """ ## ##! """ # | | // T ## """ ## ## " # | +----------------------------------------------------+ Best States ------------- Heat Dissipation 31 Energy Generation 12 Energy Capacity 265 Matter Stores 300 Matter Capacity 300 Sight Range 16 Robot Scan Range 15 Terrain Scan Density 10 Armor Coverage 600 Evasion (%) 55 Targeting Accuracy 5 Recoil Reduction 2 Offensive Hacking 10 Item Schematics ----------------- None Robot Schematics ------------------ None Fabricated ------------ Nothing Repaired ---------- Sml. Laser | 70% | -8/Materials Alien Tech Used ----------------- None Achievements -------------- None Challenges ------------ None Game ------ Seed ForceSchematicNullifier Manual? 0 Play Time 00:19:20 Cumulative 32.5 hours Start 2025.07.08 @ 04:49:41 End 2025.07.08 @ 05:04:50 Sessions 1 Manual Loads 0 Difficulty Rogue Special Mode None Game No. 175 Rogue 175 Adventurer 0 Explorer 0 Win Type - Total 0 Types 0/0/0/0/0/0/0/0/0/0 Lore% 8 Gallery% 24 Achievement% 19 Wizard Run 0 Options --------- Layout 0 ASCII 0 Keyboard 0 Movement Arrows Keybinds 0 Fullscreen 2 Font 24/Cog Map View 76x50 Zoom Use 0% Tactical HUD 1 Map Filters NONE Filters NONE Steam 1 RUN: 919bbee3-a89a-43e2-b637-b7e51f9cbd97